bitfinex-derivatives/quotes_ETHF0:USTF0_20220103
["timestamp","ask_amount","ask_price","bid_price","bid_amount"]
[1641220650698,0.2109566,3848.6,3847.4,2.00479]
[1641220650896,0.2109566,3848.6,3847.4,3.50479]
[1641220651096,0.1471676,3848.5,3847.8,3.50479]
[1641220651497,0.2509444,3848.5,3847.8,2.00479]
[1641220651797,2.17025213,3847.9,3847.8,3.50479]
[1641220651997,2.17025213,3847.9,3847.8,3.734781]
[1641220652196,2.17025213,3847.9,3847.8,3.50479]
[1641220652400,1.33085213,3847.9,3847.8,3.50479]
[1641220652598,10.92345845,3849.9,3847.8,3.50479]
[1641220652896,10.92345845,3849.9,3848.6,1.5]
[1641220653098,10.92345845,3849.9,3848.6,1.729991]
[1641220653297,17.22631173,3849.9,3848.6,1.729991]
[1641220653498,2.94338288,3848.4,3848.3,1.5]
[1641220653897,2.94338288,3848.4,3848.3,1.729991]
[1641220654300,2.00479,3848.7,3848.3,1.729991]
[1641220654501,1.7464134,3848.7,3848.6,1.5]
[1641220654699,1.7464134,3848.7,3848.6,0.229991]
[1641220654902,1.8230224,3848.7,3848.2,0.128157]
[1641220655100,1.7464134,3848.7,3848.3,1.5]
[1641220655498,1.7464134,3848.7,3847.9,1.2935541]
[1641220655699,0.6083,3849.6,3848.6,1.5]
[1641220655899,3.0,3851.4,3849.1,1.5]
[1641220656400,3.0,3851.4,3849.2,4.156275]
[1641220656401,4.0468026,3849.5,3849.2,4.156275]
[1641220656599,5.92531874,3850.1,3849.4,1.5]
[1641220656801,5.92531874,3850.1,3849.5,1.5]
[1641220657001,1.09281798,3850.1,3849.5,4.156114]
[1641220657200,1.09281798,3850.1,3850.0,4.00958]
[1641220657404,0.076609,3850.1,3850.0,4.00958]
[1641220657803,0.14711097,3850.1,3850.0,4.00958]
[1641220658003,0.14711097,3850.1,3849.1,1.5]
[1641220658004,0.14711097,3850.1,3849.0,1.5]
[1641220658203,0.5958,3850.1,3848.8,0.83131232]
[1641220658404,0.14711097,3850.0,3849.3,1.5]
[1641220658605,0.14711097,3850.0,3847.8,0.74217006]
[1641220658804,0.14711097,3850.0,3849.3,1.5]
[1641220659005,0.14711097,3850.0,3848.7,1.5]
[1641220659208,2.00479,3849.8,3848.6,2.00479]
[1641220659405,11.24,3849.7,3848.6,2.00479]
[1641220659605,2.79120955,3849.8,3848.6,2.00479]
[1641220659806,0.14711097,3849.6,3848.6,2.00479]
[1641220660007,0.14711097,3849.7,3848.6,2.00479]
[1641220660207,0.14711097,3849.5,3848.6,2.00479]
[1641220660408,0.14711097,3849.6,3848.6,2.00479]
[1641220660608,2.79120955,3849.8,3848.6,2.00479]
[1641220661009,0.14713219,3849.5,3848.6,2.00479]
[1641220661209,2.00479,3849.4,3848.6,2.00479]
[1641220662009,2.00479,3849.4,3848.8,1.5]
[1641220662411,2.00479,3849.4,3848.6,2.00479]
[1641220662812,2.00479,3849.4,3848.7,0.128157]
[1641220663012,2.00479,3849.4,3848.6,2.00479]
[1641220664113,2.00479,3849.4,3847.2,1.5]
[1641220664114,13.24479,3849.4,3847.2,1.5]
[1641220664313,11.24,3849.0,3847.3,0.5491]
[1641220664513,1.29926994,3847.7,3846.1,1.5]
[1641220664712,2.00766994,3847.7,3845.6,33.0287]
[1641220664914,1.29939149,3847.3,3845.2,30.5304]
[1641220665117,2.00479,3846.3,3845.4,2.00479]
[1641220665314,2.60029,3846.3,3845.5,0.128157]
[1641220665512,2.60029,3846.3,3845.4,2.00479]
[1641220666115,2.60029,3846.3,3846.1,1.5]
[1641220666314,2.676899,3846.3,3845.4,2.00479]
[1641220666513,2.676899,3846.3,3845.4,3.50479]
[1641220666713,2.676899,3846.3,3845.4,2.00479]
[1641220667415,2.60029,3846.3,3846.2,1.5]
[1641220667617,2.676899,3846.3,3845.5,1.628157]
[1641220667815,2.676899,3846.3,3845.5,0.128157]
[1641220668016,2.676899,3846.3,3845.4,2.00479]
[1641220668218,11.24,3846.2,3844.6,0.5491]
[1641220668619,11.24,3846.2,3840.7,3.0]
[1641220668620,11.24,3845.6,3842.0,1.5]
[1641220668818,42.2833,3845.6,3841.5,1.5]
[1641220669017,42.2833,3845.6,3844.7,0.02945259]
[1641220669218,1.30031064,3844.6,3842.7,0.5491]
[1641220669518,11.24,3843.9,3842.4,1.30031064]
[1641220669719,11.24,3844.0,3842.4,1.30031064]
[1641220669918,1.15568838,3844.3,3842.1,2.00479]
[1641220670120,0.8067,3844.6,3842.7,1.5]
[1641220670319,5.3962344,3844.8,3842.8,0.5491]
[1641220670519,4.00958,3844.8,3842.5,1.5]
[1641220670718,4.00958,3844.8,3842.1,2.00479]
[1641220670919,4.00958,3844.8,3843.4,1.5]
[1641220671119,2.00479,3843.6,3843.4,1.5]
[1641220671319,2.081399,3843.6,3843.4,1.5]
[1641220671719,2.081399,3843.6,3842.7,3.50479]
[1641220672519,2.081399,3843.6,3843.0,1.5]
[1641220672722,2.081399,3843.6,3843.4,1.5]
[1641220672920,0.31379327,3843.6,3843.4,1.5]
[1641220673118,0.23718427,3843.6,3843.4,1.5]
[1641220673720,0.23718427,3843.6,3843.1,0.128157]
[1641220674523,0.23718427,3843.6,3843.5,1.5]
[1641220674724,0.23718427,3843.6,3843.5,0.229991]
[1641220674923,0.23718427,3843.6,3843.5,1.729991]
[1641220674924,0.31379327,3843.6,3843.5,1.729991]
[1641220675123,0.23718427,3843.6,3843.1,1.628157]
[1641220675326,2.00479,3843.9,3843.5,1.5]
[1641220675524,2.00479,3843.9,3843.8,1.5]
[1641220676124,2.081399,3843.9,3843.8,1.5]
[1641220676325,2.00479,3843.9,3843.8,1.5]
[1641220676624,2.00479,3843.9,3843.1,1.628157]
[1641220677324,2.00479,3843.9,3843.2,2.00479]
[1641220679326,2.00479,3843.9,3843.3,0.128157]
[1641220679527,2.00479,3843.9,3843.5,1.5]
[1641220679827,2.00479,3843.9,3843.7,1.5]
[1641220680228,2.081399,3843.9,3843.7,1.5]
[1641220680429,2.081399,3843.9,3843.3,0.128157]
[1641220680729,2.081399,3843.9,3843.2,2.00479]
[1641220681127,0.78048409,3843.8,3842.0,0.5491]
[1641220681329,2.00479,3842.7,3841.8,2.00479]
[1641220681827,2.00479,3843.0,3842.4,1.5]
[1641220682027,2.00479,3843.0,3842.2,1.5]
[1641220682227,2.00479,3843.0,3841.9,0.128157]
[1641220682428,2.00479,3843.0,3842.1,1.5]
[1641220682629,1.30058969,3843.8,3841.9,0.128157]
[1641220682830,1.30042563,3844.3,3843.6,1.5]
[1641220683032,0.89749966,3844.7,3843.6,1.5]
[1641220683231,2.00479,3843.7,3843.6,1.5]
[1641220683431,2.081399,3843.7,3843.6,1.5]
[1641220683631,2.00479,3843.7,3842.8,2.00479]
[1641220684432,2.00479,3843.7,3842.9,0.02946067]
[1641220685535,0.09206342,3843.6,3843.4,1.12641056]
[1641220685730,0.16867242,3843.6,3843.4,1.12641056]
[1641220686131,0.16867242,3843.6,3843.5,0.02946067]
[1641220686331,0.09206342,3843.6,3843.5,0.25945167]
[1641220686530,0.16867242,3843.6,3843.5,0.02946067]
[1641220686731,0.09206342,3843.6,3843.5,0.02946067]
[1641220687131,3.13426131,3843.7,3843.5,0.02946067]
[1641220687332,0.076609,3843.6,3843.5,0.02946067]
[1641220687534,3.13426131,3843.7,3843.5,0.25945167]
[1641220687833,3.13426131,3843.7,3843.5,0.02946067]
[1641220688038,1.12947131,3843.9,3843.6,1.67879105]
[1641220688235,1.12947131,3843.9,3843.6,1.70825172]
[1641220688436,1.12947131,3843.9,3843.7,0.229991]
[1641220688637,1.12947131,3843.9,3843.7,0.25945167]
[1641220688837,1.12947131,3843.9,3843.8,0.02946067]
[1641220689038,3.13426131,3844.0,3843.8,0.02946067]
[1641220689238,3.13426131,3844.0,3843.9,0.229991]
[1641220689441,1.12947131,3844.0,3843.9,0.229991]
[1641220689638,1.20608031,3844.0,3843.8,0.02946067]
[1641220689839,1.12947131,3844.0,3843.8,0.02946067]
[1641220690038,1.12947131,3844.0,3843.7,1.67879105]
[1641220690039,1.12947131,3844.0,3843.9,0.58184116]
[1641220690240,1.12947131,3844.2,3843.9,1.93824272]
[1641220690438,0.076609,3844.1,3843.9,1.70825172]
[1641220690642,1.12947131,3844.2,3843.9,1.70825172]
[1641220691039,1.12947131,3844.2,3844.0,0.02946067]
[1641220691239,2.00479,3844.1,3844.0,0.02946067]
[1641220691440,2.832799,3844.1,3844.0,0.02946067]
[1641220692442,2.75619,3844.1,3843.4,0.02946067]
[1641220692643,2.832799,3844.1,3844.0,0.02946067]
[1641220692843,2.75619,3844.1,3844.0,0.02946067]
[1641220693043,2.75619,3844.1,3843.5,0.02946067]
[1641220693245,2.75619,3844.1,3844.0,0.02946067]
[1641220693444,2.832799,3844.1,3844.0,0.02946067]
[1641220693643,2.75619,3844.1,3843.6,0.02946067]
[1641220694043,2.75619,3844.1,3843.3,2.00479]
[1641220694044,2.75619,3844.1,3844.0,0.02946067]
[1641220694244,2.832799,3844.1,3843.7,0.02946067]
[1641220694543,2.832799,3844.1,3843.3,2.00479]
[1641220694544,2.75619,3844.1,3844.0,0.02946067]
[1641220694743,2.75619,3844.1,3843.8,0.02946067]
[1641220695145,0.7514,3844.1,3843.8,0.02946067]
[1641220695445,2.00479,3845.9,3844.0,3.30451589]
[1641220695645,2.00479,3845.9,3844.9,1.5]
[1641220695847,2.00479,3845.9,3844.9,0.8363]
[1641220696045,2.00479,3845.9,3845.0,0.02946067]
[1641220696645,11.24,3845.8,3845.0,0.02946067]
[1641220696848,14.24,3845.8,3845.0,0.02946067]
[1641220697045,11.24,3845.8,3845.0,0.02946067]
[1641220697245,2.00479,3845.4,3844.5,2.00479]
[1641220697445,11.24,3845.3,3844.5,2.00479]
[1641220697648,11.24,3845.3,3845.1,0.02946067]
[1641220697847,0.076609,3845.2,3844.6,0.02946067]
[1641220698048,2.00479,3845.4,3844.5,2.00479]
[1641220698849,2.00479,3845.4,3844.0,2.00479]
[1641220699050,11.24,3845.3,3844.0,2.00479]
[1641220699249,2.00479,3844.9,3844.0,2.00479]
[1641220700153,2.00479,3844.9,3844.1,0.128157]
[1641220700651,2.00479,3844.9,3844.0,2.00479]
[1641220700852,2.81809,3844.9,3844.0,2.00479]
[1641220701055,11.24,3844.8,3844.0,2.00479]
[1641220701251,2.81809,3844.9,3844.0,2.00479]
[1641220702052,11.24,3844.8,3844.0,2.00479]
[1641220702352,2.00479,3845.4,3844.3,1.5]
[1641220702553,2.00479,3845.4,3844.3,0.6242]
[1641220703253,2.00479,3845.4,3844.6,2.00479]
[1641220703853,11.24,3845.3,3844.6,2.00479]
[1641220704455,12.54006721,3845.3,3844.6,2.00479]
[1641220704654,12.54006721,3845.3,3844.0,2.00479]
[1641220704956,11.24,3845.3,3844.0,2.00479]
[1641220705155,1.30013482,3845.1,3844.0,2.00479]
[1641220705358,11.24,3844.6,3844.0,2.00479]
[1641220705756,11.24,3844.6,3843.4,2.00479]
[1641220706358,2.00479,3844.7,3843.4,2.00479]
[1641220707159,2.00479,3844.7,3843.5,1.29995398]
[1641220707358,2.00479,3844.7,3843.9,2.00479]
[1641220707759,2.00479,3844.7,3844.0,0.128157]
[1641220708161,2.00479,3844.7,3843.9,2.00479]
[1641220708863,11.24,3845.0,3843.9,2.00479]
[1641220709265,2.00479,3844.3,3843.4,2.00479]
[1641220709864,2.00479,3844.3,3843.5,0.128157]
[1641220710163,2.00479,3844.6,3843.5,0.128157]
[1641220710366,13.24479,3844.6,3843.5,0.128157]
[1641220711366,13.24479,3844.6,3843.9,2.00479]
[1641220713270,13.24479,3844.6,3844.0,0.02945673]
[1641220715369,13.24479,3844.6,3843.9,2.00479]
[1641220715771,13.24479,3844.6,3844.0,0.02945685]
[1641220717676,0.10593076,3844.5,3844.0,0.02945685]
[1641220718877,1.25909701,3844.5,3844.0,0.02945685]
[1641220720887,0.10593076,3844.5,3844.0,0.02945685]
[1641220722484,1.25909701,3844.6,3844.0,0.15761385]
[1641220722684,0.10593076,3844.6,3844.0,0.15761385]
[1641220722885,0.10593076,3844.6,3844.1,0.02945685]
[1641220723683,1.5,3844.5,3844.0,0.02945685]
[1641220723886,1.60593076,3844.5,3844.0,0.02945685]
[1641220724083,1.60593076,3844.5,3844.2,0.02945685]
[1641220724285,0.076609,3844.4,3844.1,0.02945685]
[1641220724484,0.076609,3844.4,3844.3,0.02945685]
[1641220724684,0.18253976,3844.4,3844.3,0.02945685]
[1641220724884,0.18253976,3844.4,3843.9,0.02945685]
[1641220725085,0.18253976,3844.4,3844.3,0.02945685]
[1641220725283,0.18253976,3844.4,3843.4,2.83055975]
[1641220725485,2.00479,3844.3,3843.4,2.83055975]
[1641220725885,2.00479,3844.3,3843.5,0.128157]
[1641220726085,13.24479,3844.3,3843.4,2.83055975]
[1641220726286,13.24479,3844.3,3843.4,2.00479]
[1641220726287,13.35072076,3844.3,3843.4,2.00479]
[1641220727487,0.10593076,3844.2,3843.5,1.37810568]
[1641220728488,0.10593076,3844.2,3843.4,2.00479]
[1641220728786,0.10593076,3844.2,3843.3,0.82576975]
[1641220728989,0.10593076,3844.2,3843.4,0.128157]
[1641220729589,2.00479,3843.8,3843.4,0.128157]
[1641220729787,2.00479,3843.8,3843.3,0.82576975]
[1641220730388,13.24479,3843.8,3843.3,0.82576975]
[1641220731791,13.24479,3843.8,3843.2,0.82576975]
[1641220731989,1.5,3843.7,3843.2,0.82576975]
[1641220732189,12.54078255,3843.3,3843.1,0.5523571]
[1641220732389,0.076609,3843.2,3843.1,0.5523571]
[1641220732992,0.076609,3843.2,3842.9,1.10102634]
[1641220733396,0.076609,3843.2,3842.7,1.10102634]
[1641220733793,11.316609,3843.2,3842.7,1.10102634]
[1641220733996,0.076609,3843.2,3842.7,1.10102634]
[1641220734393,11.316609,3843.2,3842.7,1.10102634]
[1641220734595,11.316609,3843.2,3842.4,1.10102634]
[1641220734796,1.5,3842.8,3842.4,1.10102634]
[1641220734995,11.24,3842.7,3842.4,1.10102634]
[1641220735195,0.076609,3842.6,3842.4,1.10102634]
[1641220735395,4.80555563,3843.3,3842.4,1.10102634]
[1641220735396,2.00479,3843.3,3842.4,1.10102634]
[1641220735600,2.00479,3843.3,3842.1,1.37628292]
[1641220735601,11.24,3842.7,3842.1,1.65347146]
[1641220735996,14.2792486,3842.7,3842.1,1.65347146]
[1641220737197,14.2792486,3842.7,3842.1,1.10102634]
[1641220737198,0.15100821,3842.6,3842.1,1.10102634]
[1641220737396,0.15100821,3842.6,3841.6,1.65347146]
[1641220737596,11.24,3842.2,3841.6,1.65347146]
[1641220738897,11.24,3842.2,3841.6,0.55244512]
[1641220739100,1.30115491,3842.1,3841.6,0.55244512]
[1641220739398,1.30115491,3842.1,3841.5,3.10581634]
[1641220739599,3.34266516,3842.1,3841.5,2.00479]
[1641220739797,11.24,3842.0,3841.3,1.10102634]
[1641220739996,11.8329,3842.0,3841.3,1.10102634]
[1641220740197,11.8329,3842.0,3841.4,0.128157]
[1641220740397,11.8329,3842.0,3841.4,0.15763006]
[1641220740597,0.5929,3842.0,3841.4,0.15763006]
[1641220740801,0.5929,3842.0,3841.5,0.02947306]
[1641220741000,0.16294974,3842.0,3841.5,0.02947306]
[1641220741400,0.16294974,3842.0,3841.4,0.02947306]
[1641220741601,11.24,3841.8,3841.6,0.02947306]
[1641220741800,0.076609,3841.7,3841.5,0.02947306]
[1641220742001,0.076609,3841.7,3841.0,3.10581634]
[1641220742205,0.076609,3841.7,3841.1,1.10102634]
[1641220743101,0.076609,3841.7,3841.1,1.22918334]
[1641220743302,0.076609,3841.7,3841.1,0.55265278]
[1641220746306,1.07618313,3841.7,3841.1,0.55265278]
[1641220749913,1.07618313,3841.7,3841.1,0.68080978]
[1641220750512,0.99957413,3841.7,3841.1,0.68080978]
[1641220750714,0.99957413,3841.7,3841.1,0.55265278]
[1641220750911,0.99957413,3841.7,3841.0,2.00479]
[1641220751917,1.59627413,3841.7,3840.7,1.10102634]
[1641220752513,1.30133269,3841.6,3840.7,1.10102634]
[1641220752714,2.80133269,3841.6,3840.7,1.10102634]
[1641220752916,11.24,3841.5,3840.2,31.2557]
[1641220753215,11.24,3841.5,3839.7,0.83318692]
[1641220753415,11.24,3841.1,3839.7,0.83318692]
[1641220753616,3.0,3841.2,3839.9,2.00479]
[1641220753617,11.24,3840.7,3839.9,2.00479]
[1641220753816,11.8027,3840.7,3839.9,2.00479]
[1641220754017,0.5627,3840.7,3839.9,2.132947]
[1641220755317,11.8027,3840.7,3839.9,2.00479]
[1641220756018,11.8027,3840.7,3839.5,2.00479]
[1641220756219,1.96105751,3840.4,3839.5,2.00479]
[1641220757022,1.96105751,3840.4,3839.6,0.128157]
[1641220757519,1.96105751,3840.4,3839.6,0.1576386]
[1641220757719,2.00479,3840.1,3839.7,0.0294816]
[1641220757920,13.24479,3840.1,3839.7,0.0294816]
[1641220758119,13.24479,3840.1,3839.6,0.0294816]
[1641220758420,13.24479,3840.1,3838.8,30.3714]
[1641220758622,11.24,3839.9,3838.6,1.38228692]
[1641220758819,12.0509,3839.9,3838.6,0.83318692]
[1641220759027,12.0509,3839.9,3838.4,0.83318692]
[1641220759622,2.00479,3838.6,3838.4,0.83318692]
[1641220759820,0.076609,3838.5,3838.4,0.83318692]
[1641220760621,0.076609,3838.5,3838.1,1.10102634]
[1641220760821,0.076609,3838.5,3837.8,0.83318692]
[1641220761027,0.076609,3838.5,3837.8,0.96134392]
[1641220761724,2.00479,3838.1,3837.8,0.128157]
[1641220761922,2.00479,3838.1,3837.9,0.229991]
[1641220762125,0.6528,3838.6,3837.9,0.229991]
[1641220762424,0.6528,3838.6,3837.4,1.85110026]
[1641220762624,3.0,3838.3,3837.3,0.83318692]
[1641220762824,11.24,3838.2,3837.3,0.83318692]
[1641220763023,11.24,3838.2,3836.8,3.30700389]
[1641220763024,11.24,3838.2,3837.1,0.83318692]
[1641220763623,11.24,3837.9,3837.1,0.83318692]
[1641220764325,11.24,3837.9,3836.8,2.00479]
[1641220764727,11.24,3838.2,3837.7,1.5]
[1641220764925,3.0,3839.0,3837.7,2.1973]
[1641220765325,3.0,3839.0,3837.9,1.5]
[1641220765724,3.0,3839.0,3838.2,2.00479]
[1641220765925,2.00479,3839.1,3838.2,2.00479]
[1641220766126,64.80166393,3839.7,3838.2,2.00479]
[1641220766324,1.56869757,3839.7,3838.2,2.00479]
[1641220766726,36.34180736,3840.1,3838.2,2.00479]
[1641220766925,11.24,3840.0,3838.2,2.00479]
[1641220767126,11.24,3840.0,3838.7,1.5]
[1641220767329,11.24,3840.0,3838.7,0.7702]
[1641220767527,0.85587321,3840.1,3839.0,1.5]
[1641220767727,0.85587321,3840.1,3839.6,2.00479]
[1641220767927,13.24479,3840.5,3839.6,2.883347]
[1641220768328,13.24479,3840.5,3839.6,2.75519]
[1641220772231,3.0,3840.4,3839.6,2.00479]
[1641220772434,14.24,3840.3,3839.2,2.00479]
[1641220772632,11.24,3839.8,3839.2,2.00479]
[1641220773233,4.5,3839.7,3838.2,29.5995]
[1641220773432,1.5,3839.5,3837.8,0.83318692]
[1641220773632,0.6525,3839.5,3839.3,0.02949106]
[1641220773833,15.326189,3839.4,3837.9,2.03428106]
[1641220774237,15.326189,3839.4,3838.0,0.02949106]
[1641220775735,15.326189,3839.4,3838.4,2.00479]
[1641220776136,15.326189,3839.4,3838.5,0.02949106]
[1641220777038,1.30210368,3839.3,3838.5,0.02949106]
[1641220777441,1.30232922,3838.7,3838.5,0.02949106]
[1641220777639,1.30232921,3839.1,3838.5,0.02949106]
[1641220777939,1.30220711,3839.0,3838.5,0.02949106]
[1641220779238,4.00958,3839.4,3838.5,0.02949106]
[1641220779438,4.00958,3839.4,3838.5,0.71959106]
[1641220779639,4.00958,3839.4,3838.5,2.21959106]
[1641220780042,4.00958,3839.4,3839.0,1.76948419]
[1641220780240,4.00958,3839.4,3838.6,0.02949106]
[1641220780441,1.30174603,3840.4,3839.1,0.02949106]
[1641220780842,1.30174603,3840.4,3838.8,1.5]
[1641220781041,1.30174603,3840.4,3839.2,0.02949106]
[1641220781242,1.30174603,3840.4,3838.9,0.02949106]
[1641220781442,1.30174603,3840.4,3839.3,0.02949106]
[1641220781841,2.00479,3840.3,3839.4,2.00479]
[1641220782142,2.00479,3840.3,3839.5,0.128157]
[1641220782343,2.00479,3840.3,3839.5,0.15764806]
[1641220782745,2.00479,3840.3,3839.6,0.02949106]
[1641220784146,11.24,3840.2,3839.6,0.02949106]
[1641220784345,2.00479,3840.3,3839.6,0.02949106]
[1641220784547,11.24,3840.2,3839.5,0.02949106]
[1641220784948,2.00479,3840.3,3839.7,0.02949106]
[1641220785151,2.00479,3840.3,3839.6,0.02949106]
[1641220785348,2.00479,3840.3,3839.8,0.02949106]
[1641220785548,11.24,3840.2,3839.8,0.02949106]
[1641220785847,11.24,3840.2,3839.9,0.02949106]
[1641220786049,0.076609,3840.1,3839.9,0.02949106]
[1641220786351,0.076609,3840.1,3839.5,0.02949106]
[1641220789355,11.24,3840.0,3839.4,2.00479]
[1641220789554,1.60852078,3839.6,3839.4,2.00479]
[1641220789756,0.076609,3839.5,3839.4,2.00479]
[1641220790758,0.076609,3839.5,3839.4,2.0342805]
[1641220791661,1.30189517,3839.9,3839.4,2.2642715]
[1641220792065,3.30657501,3840.3,3839.4,2.2642715]
[1641220792261,14.54657501,3840.3,3839.4,2.8306715]
[1641220792560,14.54657501,3840.3,3839.5,0.0294905]
[1641220795366,1.29578102,3839.6,3839.5,0.0294905]
[1641220795564,11.24,3839.5,3838.4,2.00479]
[1641220795765,1.94948102,3839.6,3838.4,2.00479]
[1641220795963,15.19427102,3839.6,3838.4,2.00479]
[1641220796562,3.95427102,3839.6,3838.4,2.00479]
[1641220796764,2.65849,3839.6,3838.4,2.00479]
[1641220797163,2.65849,3839.6,3838.4,4.26129]
[1641220797364,2.65849,3839.6,3838.5,1.5]
[1641220797764,2.65849,3839.6,3838.4,2.76129]
[1641220797966,0.6537,3839.6,3839.2,2.00479]
[1641220798163,13.24479,3840.3,3839.2,2.00479]
[1641220798363,13.24479,3840.3,3838.4,2.76129]
[1641220798764,14.74479,3840.3,3838.4,2.76129]
[1641220799163,13.24479,3840.3,3838.4,2.76129]
[1641220799363,14.74479,3840.3,3838.4,2.76129]
[1641220799964,2.00479,3839.6,3838.4,2.76129]
[1641220800164,13.24479,3839.6,3838.4,2.76129]
[1641220800468,2.00479,3840.3,3839.0,1.5]
[1641220800665,2.00479,3840.3,3839.5,1.5]
[1641220800866,2.00479,3840.3,3839.6,0.128157]
[1641220801668,2.00479,3840.3,3839.5,2.1114]
[1641220801869,2.00479,3840.3,3839.5,1.5]
[1641220802170,2.00479,3840.3,3839.6,2.00479]
[1641220802868,2.00479,3840.3,3839.6,2.132947]
[1641220803071,2.00479,3840.3,3839.6,2.00479]
[1641220804973,2.00479,3840.3,3839.7,0.128157]
[1641220808775,13.24479,3840.9,3839.7,0.128157]
[1641220811779,1.44145781,3840.5,3840.2,0.83318692]
[1641220811980,1.44145781,3840.5,3840.3,0.229991]
[1641220812379,0.076609,3840.4,3840.3,0.229991]
[1641220812580,1.44145781,3840.5,3840.2,0.83318692]
[1641220812781,1.44145781,3840.5,3840.3,0.229991]
[1641220812980,1.44145781,3840.5,3840.2,0.83318692]
[1641220813483,1.44145781,3840.6,3840.4,1.38604504]
[1641220813683,1.44145781,3840.6,3840.5,0.229991]
[1641220813882,1.51806681,3840.6,3840.4,1.38604504]
[1641220814484,1.51806681,3840.6,3840.4,0.83318692]
[1641220814485,0.076609,3840.6,3840.4,0.83318692]
[1641220815184,0.076609,3840.6,3840.3,1.38604243]
[1641220815185,0.20915457,3840.5,3840.3,1.38604243]
[1641220815586,0.076609,3840.4,3840.3,1.38604243]
[1641220816285,0.076609,3840.4,3840.3,0.83318692]
[1641220816488,0.076609,3840.4,3840.2,2.83797692]
[1641220817288,0.20915457,3840.3,3840.2,2.83797692]
[1641220817888,0.99856357,3840.3,3840.2,2.83797692]
[1641220818288,0.99856357,3840.3,3840.2,1.38605493]
[1641220818489,0.99856357,3840.3,3839.9,1.10102634]
[1641220818490,11.24,3840.2,3839.9,0.30404506]
[1641220818689,11.24,3840.2,3839.6,1.37628292]
[1641220819088,11.24,3840.2,3839.8,1.13658189]
[1641220819788,11.24,3840.2,3839.5,1.37628292]
[1641220820189,12.68145781,3840.0,3839.2,3.38107292]
[1641220821194,11.24,3840.0,3839.2,2.00479]
[1641220821392,2.00479,3840.1,3839.3,0.128157]
[1641220821689,2.74319537,3840.4,3839.3,0.128157]
[1641220822291,2.74319537,3840.4,3839.7,2.00479]
[1641220822992,13.98319537,3840.4,3839.7,2.00479]
[1641220823396,12.54173756,3840.4,3839.7,2.00479]
[1641220824896,1.30173756,3840.4,3839.7,2.00479]
[1641220826999,1.05084537,3840.0,3839.7,2.00479]
[1641220827198,0.076609,3839.9,3839.7,2.00479]
[1641220827799,0.076609,3839.9,3838.9,1.37628292]
[1641220828199,2.00479,3839.6,3838.9,1.37628292]
[1641220828399,2.00479,3839.6,3838.9,1.50443992]
[1641220828801,13.24479,3839.6,3838.9,1.37628292]
[1641220829203,13.24479,3839.6,3838.6,1.37628292]
[1641220830102,2.00479,3839.6,3838.6,1.37628292]
[1641220830304,2.00479,3839.2,3838.6,1.37628292]
[1641220830504,2.57309,3839.2,3838.6,1.50443992]
[1641220830704,2.57309,3839.2,3838.9,1.13495098]
[1641220830904,0.076609,3839.1,3838.9,1.13495098]
[1641220831907,0.076609,3839.1,3838.7,1.13495098]
[1641220832504,11.316609,3839.1,3838.7,1.13495098]
[1641220833707,11.24,3838.8,3838.1,1.6515395]
[1641220833905,12.22104533,3838.8,3838.1,1.6515395]
[1641220834305,2.00479,3838.6,3838.5,1.13568867]
[1641220834504,2.081399,3838.6,3838.5,1.13568867]
[1641220834707,3.13816081,3838.6,3837.4,0.394]
[1641220834907,3.0,3838.3,3837.4,0.394]
[1641220835106,1.03297624,3838.2,3837.4,0.394]
[1641220835310,1.03297624,3838.2,3837.6,0.73732407]
[1641220835908,3.06155181,3838.6,3837.6,0.86548107]
[1641220836307,2.00479,3839.2,3837.7,2.00479]
[1641220836510,2.16218672,3839.1,3837.7,2.00479]
[1641220837007,2.16218672,3839.1,3837.7,3.50479]
[1641220837610,2.00479,3839.2,3837.7,3.50479]
[1641220838208,2.00479,3839.2,3838.2,2.00479]
[1641220838610,13.24479,3839.2,3838.2,2.00479]
[1641220838809,2.00479,3839.2,3838.2,2.00479]
[1641220839414,0.27356794,3839.1,3839.0,0.85394237]
[1641220839612,0.35017694,3839.1,3839.0,0.85394237]
[1641220839910,11.59017694,3839.1,3838.3,0.55296289]
[1641220840312,11.59017694,3839.1,3838.2,2.00479]
[1641220840512,11.59017694,3839.1,3837.7,2.00479]
[1641220841816,12.23005308,3838.6,3837.8,0.55297197]
[1641220842018,12.23005308,3838.6,3837.4,2.92853781]
[1641220842019,0.9818884,3838.1,3837.4,2.92853781]
[1641220842416,2.00479,3838.2,3837.4,2.92853781]
[1641220842822,2.00479,3838.2,3837.5,0.128157]
[1641220843420,2.00479,3838.2,3837.5,0.714357]
[1641220843818,2.00479,3838.2,3837.5,0.5862]
[1641220844218,4.00958,3838.2,3837.5,0.5862]
[1641220844621,4.00958,3838.2,3837.6,1.42489742]
[1641220844819,4.00958,3838.2,3837.6,1.55305442]
[1641220845420,4.00958,3838.2,3837.8,1.42489742]
[1641220845619,4.00958,3838.2,3838.1,1.13951858]
[1641220845819,4.086189,3838.2,3838.1,1.13951858]
[1641220846220,4.00958,3838.2,3838.1,1.13951858]
[1641220846420,4.00958,3838.2,3837.8,1.42489742]
[1641220846620,4.00958,3838.2,3837.9,1.42489742]
[1641220847222,4.00958,3838.2,3838.0,0.229991]
[1641220847420,1.17978537,3838.4,3838.0,0.229991]
[1641220847620,1.17978537,3838.5,3838.0,0.229991]
[1641220848422,1.17978537,3838.5,3838.1,1.42489742]
[1641220848622,1.17978537,3838.7,3838.4,1.13881287]
[1641220848823,0.076609,3838.6,3838.4,1.13881287]
[1641220849623,0.076609,3838.6,3837.6,0.128157]
[1641220850326,2.00479,3838.3,3837.6,0.128157]
[1641220850527,2.00479,3838.3,3837.6,1.26696987]
[1641220851427,2.00479,3838.3,3837.6,0.128157]
[1641220851625,13.24479,3838.3,3837.5,1.13881287]
[1641220852226,2.00479,3838.3,3837.6,0.128157]
[1641220854428,2.00479,3838.3,3837.3,2.00479]